[Event "Titled Tuesday Blitz May 10 Late 2022"]
[White "Keller, Peter"]
[Black "Kim, Sergey"]
[WhiteFideId "1272105"]
[BlackFideId "13700570"]
[WhiteElo "2275"]
[BlackElo "2469"]
[Result "1-0"]
[Round "11"]
[TimeControl "180+1"]
[Date "2022.05.11"]
[WhiteClock "0:00:12"]
[BlackClock "0:00:03"]

1. e4 {[%clk 0:02:58]}  e5 {[%clk 0:02:59]} 2. Nf3 {[%clk 0:02:58]}  Nc6 {[%clk 0:02:59]} 3. Bb5 {[%clk 0:02:58]}  a6 {[%clk 0:03:00]} 4. Bxc6 {[%clk 0:02:57]}  dxc6 {[%clk 0:02:59]} 5. O-O {[%clk 0:02:58]}  f6 {[%clk 0:02:59]} 6. d4 {[%clk 0:02:58]}  exd4 {[%clk 0:03:00]} 7. Nxd4 {[%clk 0:02:58]}  Ne7 {[%clk 0:03:00]} 8. Nc3 {[%clk 0:02:55]}  Ng6 {[%clk 0:03:00]} 9. Be3 {[%clk 0:02:46]}  Bb4 {[%clk 0:03:00]} 10. Qd3 {[%clk 0:02:44]}  Ne5 {[%clk 0:02:59]} 11. Qe2 {[%clk 0:02:42]}  Bxc3 {[%clk 0:02:56]} 12. bxc3 {[%clk 0:02:43]}  c5 {[%clk 0:02:42]} 13. Nf5 {[%clk 0:02:39]}  Bxf5 {[%clk 0:02:33]} 14. exf5 {[%clk 0:02:40]}  Qe7 {[%clk 0:02:32]} 15. f4 {[%clk 0:02:32]}  Nc6 {[%clk 0:02:30]} 16. Qf2 {[%clk 0:02:30]}  b6 {[%clk 0:02:27]} 17. Rfe1 {[%clk 0:02:30]}  O-O-O {[%clk 0:02:07]} 18. a4 {[%clk 0:02:14]}  a5 {[%clk 0:02:00]} 19. Qf3 {[%clk 0:01:58]}  Nb8 {[%clk 0:01:59]} 20. Rab1 {[%clk 0:01:41]}  Qd7 {[%clk 0:01:45]} 21. Bxc5 {[%clk 0:01:36]}  Qc6 {[%clk 0:01:32]} 22. Qxc6 {[%clk 0:01:35]}  Nxc6 {[%clk 0:01:32]} 23. Be3 {[%clk 0:01:36]}  h5 {[%clk 0:01:29]} 24. Kf2 {[%clk 0:01:36]}  Rd5 {[%clk 0:01:26]} 25. h3 {[%clk 0:01:29]}  Rxf5 {[%clk 0:01:24]} 26. c4 {[%clk 0:01:26]}  Nb4 {[%clk 0:01:21]} 27. g4 {[%clk 0:01:21]}  hxg4 {[%clk 0:01:13]} 28. hxg4 {[%clk 0:01:22]}  Rc5 {[%clk 0:01:09]} 29. Bxc5 {[%clk 0:01:21]}  bxc5 {[%clk 0:01:10]} 30. Re2 {[%clk 0:01:16]}  Rh3 {[%clk 0:01:07]} 31. Rb3 {[%clk 0:01:09]}  Rh4 {[%clk 0:01:03]} 32. Kg3 {[%clk 0:01:08]}  Rh1 {[%clk 0:01:03]} 33. Re7 {[%clk 0:00:57]}  g5 {[%clk 0:00:45]} 34. f5 {[%clk 0:00:57]}  Rg1+ {[%clk 0:00:40]} 35. Kh3 {[%clk 0:00:56]}  Rh1+ {[%clk 0:00:38]} 36. Kg2 {[%clk 0:00:55]}  Rc1 {[%clk 0:00:38]} 37. Rc3 {[%clk 0:00:47]}  Ra1 {[%clk 0:00:18]} 38. Rf7 {[%clk 0:00:47]}  Rxa4 {[%clk 0:00:16]} 39. Rxf6 {[%clk 0:00:48]}  Ra2 {[%clk 0:00:17]} 40. Rg6 {[%clk 0:00:40]}  Nxc2 {[%clk 0:00:17]} 41. Rxg5 {[%clk 0:00:32]}  Nd4+ {[%clk 0:00:16]} 42. Kh3 {[%clk 0:00:29]}  a4 {[%clk 0:00:16]} 43. f6 {[%clk 0:00:28]}  Ne6 {[%clk 0:00:15]} 44. Rf5 {[%clk 0:00:26]}  a3 {[%clk 0:00:13]} 45. f7 {[%clk 0:00:24]}  Nf8 {[%clk 0:00:14]} 46. Re5 {[%clk 0:00:21]}  Kd7 {[%clk 0:00:12]} 47. Re8 {[%clk 0:00:20]}  Ng6 {[%clk 0:00:12]} 48. f8=Q {[%clk 0:00:21]}  Nxf8 {[%clk 0:00:12]} 49. Rxf8 {[%clk 0:00:22]}  Ra1 {[%clk 0:00:12]} 50. Ra8 {[%clk 0:00:22]}  a2 {[%clk 0:00:12]} 51. Rca3 {[%clk 0:00:22]}  Rc1 {[%clk 0:00:10]} 52. Rxa2 {[%clk 0:00:20]}  Rxc4 {[%clk 0:00:10]} 53. Kh4 {[%clk 0:00:20]}  Rc1 {[%clk 0:00:10]} 54. Rb8 {[%clk 0:00:18]}  c4 {[%clk 0:00:10]} 55. Rb7 {[%clk 0:00:18]}  Kd6 {[%clk 0:00:10]} 56. Kg5 {[%clk 0:00:16]}  c3 {[%clk 0:00:09]} 57. Rb3 {[%clk 0:00:15]}  Kd5 {[%clk 0:00:08]} 58. Ra4 {[%clk 0:00:13]}  c5 {[%clk 0:00:07]} 59. Rba3 {[%clk 0:00:12]}  c4 {[%clk 0:00:05]} 60. Ra1 {[%clk 0:00:12]}  Rc2 {[%clk 0:00:05]} 61. Rf1 {[%clk 0:00:12]}  Rh2 {[%clk 0:00:04]} 62. Raa1 {[%clk 0:00:10]}  c2 {[%clk 0:00:03]} 63. Rac1 {[%clk 0:00:10]}  Kd4 {[%clk 0:00:04]} 64. Kg6 {[%clk 0:00:10]}  Rg2 {[%clk 0:00:03]} 65. g5 {[%clk 0:00:11]}  Ke3 {[%clk 0:00:03]} 66. Kf6 {[%clk 0:00:11]}  Kd2 {[%clk 0:00:02]} 67. g6 {[%clk 0:00:11]}  Kc3 {[%clk 0:00:02]} 68. Kf7 {[%clk 0:00:11]}  Kb2 {[%clk 0:00:03]} 69. g7 {[%clk 0:00:11]}  c3 {[%clk 0:00:03]} 70. g8=Q {[%clk 0:00:12]} 1-0


[Site "https://www.chess.com"]

[Event "Titled Tuesday Blitz May 10 Late 2022"]
[White "Lin, Dachey"]
[Black "Izzat, Kanan"]
[WhiteFideId "2029650"]
[BlackFideId "13405209"]
[WhiteElo "2313"]
[BlackElo "2362"]
[Result "0-1"]
[Round "11"]
[TimeControl "180+1"]
[Date "2022.05.10"]
[WhiteClock "0:00:09"]
[BlackClock "0:00:13"]

1. g4 {[%clk 0:03:00]}  e5 {[%clk 0:02:58]} 2. d4 {[%clk 0:03:01]}  exd4 {[%clk 0:02:58]} 3. Qxd4 {[%clk 0:03:01]}  Nc6 {[%clk 0:02:59]} 4. Qe4+ {[%clk 0:03:02]}  Be7 {[%clk 0:02:58]} 5. Bg2 {[%clk 0:03:02]}  Nf6 {[%clk 0:02:58]} 6. Qa4 {[%clk 0:03:02]}  O-O {[%clk 0:02:40]} 7. Nc3 {[%clk 0:03:01]}  d6 {[%clk 0:02:33]} 8. g5 {[%clk 0:03:02]}  Nd7 {[%clk 0:02:33]} 9. Nf3 {[%clk 0:03:02]}  Nc5 {[%clk 0:02:32]} 10. Qf4 {[%clk 0:02:58]}  Ne6 {[%clk 0:02:29]} 11. Qd2 {[%clk 0:02:49]}  Re8 {[%clk 0:02:28]} 12. Nd5 {[%clk 0:02:44]}  Bf8 {[%clk 0:02:27]} 13. b3 {[%clk 0:02:44]}  Ne7 {[%clk 0:02:28]} 14. Ne3 {[%clk 0:02:40]}  Ng6 {[%clk 0:02:24]} 15. Bb2 {[%clk 0:02:36]}  Nxg5 {[%clk 0:02:22]} 16. Nxg5 {[%clk 0:02:32]}  Qxg5 {[%clk 0:02:22]} 17. Rg1 {[%clk 0:02:19]}  c6 {[%clk 0:02:04]} 18. O-O-O {[%clk 0:02:13]}  Qf4 {[%clk 0:02:04]} 19. Bf3 {[%clk 0:02:07]}  d5 {[%clk 0:02:04]} 20. Kb1 {[%clk 0:02:01]}  a5 {[%clk 0:01:59]} 21. a4 {[%clk 0:01:58]}  f6 {[%clk 0:01:42]} 22. Bh5 {[%clk 0:01:33]}  Bc5 {[%clk 0:01:38]} 23. Bxg6 {[%clk 0:01:17]}  hxg6 {[%clk 0:01:39]} 24. Rxg6 {[%clk 0:01:18]}  d4 {[%clk 0:01:10]} 25. Bxd4 {[%clk 0:00:54]}  Rd8 {[%clk 0:01:09]} 26. Qc3 {[%clk 0:00:18]}  Bxd4 {[%clk 0:01:03]} 27. Qc4+ {[%clk 0:00:18]}  Kf8 {[%clk 0:00:54]} 28. Rg3 {[%clk 0:00:04]}  Qe5 {[%clk 0:00:34]} 29. f4 {[%clk 0:00:03]}  Qe4 {[%clk 0:00:25]} 30. Nf1 {[%clk 0:00:02]}  Be6 {[%clk 0:00:24]} 31. Qd3 {[%clk 0:00:02]}  Qxd3 {[%clk 0:00:22]} 32. Rgxd3 {[%clk 0:00:03]}  Bb6 {[%clk 0:00:22]} 33. e4 {[%clk 0:00:03]}  Rxd3 {[%clk 0:00:21]} 34. Rxd3 {[%clk 0:00:04]}  Ke7 {[%clk 0:00:21]} 35. Rf3 {[%clk 0:00:05]}  Rd8 {[%clk 0:00:20]} 36. f5 {[%clk 0:00:05]}  Rd1+ {[%clk 0:00:19]} 37. Kb2 {[%clk 0:00:06]}  Bf7 {[%clk 0:00:19]} 38. Ne3 {[%clk 0:00:05]}  Bd4+ {[%clk 0:00:18]} 39. c3 {[%clk 0:00:06]}  Rd2+ {[%clk 0:00:19]} 40. Kc1 {[%clk 0:00:06]}  Bxc3 {[%clk 0:00:19]} 41. Nf1 {[%clk 0:00:06]}  Ra2 {[%clk 0:00:18]} 42. Re3 {[%clk 0:00:05]}  Ra1+ {[%clk 0:00:18]} 43. Kc2 {[%clk 0:00:06]}  Bd4 {[%clk 0:00:17]} 44. Rd3 {[%clk 0:00:06]}  Rxf1 {[%clk 0:00:13]} 45. Rxd4 {[%clk 0:00:06]}  Rf2+ {[%clk 0:00:14]} 46. Kc3 {[%clk 0:00:07]}  Rxh2 {[%clk 0:00:14]} 47. b4 {[%clk 0:00:07]}  Rh3+ {[%clk 0:00:14]} 48. Kd2 {[%clk 0:00:08]}  axb4 {[%clk 0:00:14]} 49. Rxb4 {[%clk 0:00:09]}  Rb3 {[%clk 0:00:14]} 50. Rd4 {[%clk 0:00:09]}  c5 {[%clk 0:00:13]} 0-1


[Site "https://www.chess.com"]

[Event "Titled Tuesday Blitz May 10 Late 2022"]
[White "Martic, Ivan"]
[Black "Clarke, Brandon G I"]
[WhiteFideId "929301"]
[BlackFideId "400319"]
[WhiteElo "2317"]
[BlackElo "2414"]
[Result "1-0"]
[Round "11"]
[TimeControl "180+1"]
[Date "2022.05.10"]
[WhiteClock "0:00:11"]
[BlackClock "0:00:05"]

1. e4 {[%clk 0:02:59]}  c5 {[%clk 0:03:00]} 2. Nf3 {[%clk 0:02:58]}  d6 {[%clk 0:03:00]} 3. d4 {[%clk 0:02:58]}  cxd4 {[%clk 0:03:01]} 4. Nxd4 {[%clk 0:02:58]}  Nf6 {[%clk 0:03:02]} 5. Nc3 {[%clk 0:02:58]}  a6 {[%clk 0:03:02]} 6. Bg5 {[%clk 0:02:58]}  e6 {[%clk 0:03:03]} 7. f4 {[%clk 0:02:58]}  h6 {[%clk 0:03:02]} 8. Bh4 {[%clk 0:02:58]}  Qb6 {[%clk 0:03:03]} 9. a3 {[%clk 0:02:56]}  Be7 {[%clk 0:03:00]} 10. Bf2 {[%clk 0:02:44]}  Qc7 {[%clk 0:03:00]} 11. Qe2 {[%clk 0:02:33]}  Nbd7 {[%clk 0:03:00]} 12. O-O-O {[%clk 0:02:32]}  b5 {[%clk 0:03:00]} 13. g4 {[%clk 0:02:30]}  g5 {[%clk 0:02:45]} 14. Bg2 {[%clk 0:02:27]}  Bb7 {[%clk 0:02:42]} 15. h4 {[%clk 0:02:18]}  gxf4 {[%clk 0:02:42]} 16. g5 {[%clk 0:02:17]}  Ng8 {[%clk 0:02:16]} 17. g6 {[%clk 0:02:06]}  Ngf6 {[%clk 0:02:11]} 18. gxf7+ {[%clk 0:01:55]}  Kxf7 {[%clk 0:02:12]} 19. Nd5 {[%clk 0:01:31]}  exd5 {[%clk 0:02:08]} 20. exd5 {[%clk 0:01:30]}  Ne5 {[%clk 0:02:09]} 21. Bh3 {[%clk 0:01:21]}  Bxd5 {[%clk 0:02:08]} 22. Rhg1 {[%clk 0:01:17]}  Qc4 {[%clk 0:02:06]} 23. Qd2 {[%clk 0:01:02]}  Nf3 {[%clk 0:01:56]} 24. Qxf4 {[%clk 0:00:50]}  Nxg1 {[%clk 0:01:54]} 25. Bxg1 {[%clk 0:00:40]}  Qa2 {[%clk 0:01:32]} 26. Re1 {[%clk 0:00:37]}  Rae8 {[%clk 0:01:21]} 27. Nf5 {[%clk 0:00:34]}  Qa1+ {[%clk 0:01:08]} 28. Kd2 {[%clk 0:00:34]}  Qxb2 {[%clk 0:01:09]} 29. Rxe7+ {[%clk 0:00:32]}  Rxe7 {[%clk 0:01:08]} 30. Nxd6+ {[%clk 0:00:32]}  Kf8 {[%clk 0:01:06]} 31. Bd4 {[%clk 0:00:29]}  Re2+ {[%clk 0:00:55]} 32. Kxe2 {[%clk 0:00:28]}  Qxc2+ {[%clk 0:00:56]} 33. Ke1 {[%clk 0:00:18]}  Qb1+ {[%clk 0:00:50]} 34. Kf2 {[%clk 0:00:18]}  Qc2+ {[%clk 0:00:48]} 35. Ke1 {[%clk 0:00:18]}  Qb1+ {[%clk 0:00:33]} 36. Kd2 {[%clk 0:00:16]}  Qa2+ {[%clk 0:00:29]} 37. Kc1 {[%clk 0:00:16]}  Qxa3+ {[%clk 0:00:23]} 38. Bb2 {[%clk 0:00:16]}  Qc5+ {[%clk 0:00:22]} 39. Kd2 {[%clk 0:00:16]}  Rh7 {[%clk 0:00:07]} 40. Qxf6+ {[%clk 0:00:12]}  Kg8 {[%clk 0:00:05]} 41. Qd8# {[%clk 0:00:11]} 1-0


[Site "https://www.chess.com"]

[Event "Titled Tuesday Blitz May 10 Late 2022"]
[White "Nakamura, Hikaru"]
[Black "Zhigalko, Sergei"]
[WhiteFideId "2016192"]
[BlackFideId "13502956"]
[WhiteElo "2850"]
[BlackElo "2662"]
[Result "0-1"]
[Round "11"]
[TimeControl "180+1"]
[Date "2022.05.10"]
[WhiteClock "0:01:42"]
[BlackClock "0:00:12"]

1. Nf3 {[%clk 0:03:00]}  d5 {[%clk 0:03:00]} 2. e3 {[%clk 0:03:00]}  Nf6 {[%clk 0:02:59]} 3. c4 {[%clk 0:03:00]}  e6 {[%clk 0:02:59]} 4. Nc3 {[%clk 0:03:00]}  b6 {[%clk 0:02:59]} 5. b3 {[%clk 0:03:00]}  Bb7 {[%clk 0:03:00]} 6. Bb2 {[%clk 0:03:00]}  Bd6 {[%clk 0:03:00]} 7. Qc2 {[%clk 0:03:00]}  a6 {[%clk 0:02:57]} 8. Be2 {[%clk 0:02:58]}  O-O {[%clk 0:02:57]} 9. cxd5 {[%clk 0:02:58]}  exd5 {[%clk 0:02:57]} 10. h4 {[%clk 0:02:58]}  Re8 {[%clk 0:02:54]} 11. d4 {[%clk 0:02:57]}  c5 {[%clk 0:02:50]} 12. dxc5 {[%clk 0:02:58]}  bxc5 {[%clk 0:02:50]} 13. O-O-O {[%clk 0:02:58]}  Nc6 {[%clk 0:02:39]} 14. a3 {[%clk 0:02:37]}  d4 {[%clk 0:02:34]} 15. Na4 {[%clk 0:02:37]}  Na5 {[%clk 0:01:45]} 16. Kb1 {[%clk 0:02:22]}  Bd5 {[%clk 0:01:42]} 17. Nxc5 {[%clk 0:02:06]}  Bxc5 {[%clk 0:01:38]} 18. Qxc5 {[%clk 0:02:05]}  Nxb3 {[%clk 0:01:36]} 19. Qb4 {[%clk 0:02:01]}  Rb8 {[%clk 0:01:34]} 20. Qa4 {[%clk 0:02:02]}  Qb6 {[%clk 0:01:21]} 21. Nxd4 {[%clk 0:01:57]}  Be4+ {[%clk 0:01:08]} 22. Bd3 {[%clk 0:01:44]}  Bxd3+ {[%clk 0:00:48]} 23. Rxd3 {[%clk 0:01:45]}  Nc5 {[%clk 0:00:48]} 24. Qxe8+ {[%clk 0:01:44]}  Nxe8 {[%clk 0:00:44]} 25. Rd2 {[%clk 0:01:45]}  Na4 {[%clk 0:00:43]} 26. Ka1 {[%clk 0:01:45]}  Nd6 {[%clk 0:00:38]} 27. Rc1 {[%clk 0:01:41]}  Nxb2 {[%clk 0:00:27]} 28. Rc6 {[%clk 0:01:41]}  Qb7 {[%clk 0:00:12]} 29. Rxb2 {[%clk 0:01:42]}  Qxb2# {[%clk 0:00:12]} 0-1


[Site "https://www.chess.com"]

[Event "Titled Tuesday Blitz May 10 Late 2022"]
[White "Nazaretyan, Tigran"]
[Black "RestartingChess"]
[WhiteFideId "24162345"]
[WhiteElo "2225"]
[BlackElo "2501"]
[Result "0-1"]
[Round "11"]
[TimeControl "180+1"]
[Date "2022.05.11"]
[WhiteClock "0:00:04"]
[BlackClock "0:00:56"]

1. d4 {[%clk 0:03:00]}  Nf6 {[%clk 0:02:58]} 2. c4 {[%clk 0:03:00]}  g6 {[%clk 0:02:52]} 3. Nc3 {[%clk 0:03:00]}  d6 {[%clk 0:02:52]} 4. e4 {[%clk 0:03:00]}  Bg7 {[%clk 0:02:52]} 5. Nf3 {[%clk 0:03:00]}  O-O {[%clk 0:02:52]} 6. Be2 {[%clk 0:03:00]}  c5 {[%clk 0:02:53]} 7. d5 {[%clk 0:03:00]}  Nbd7 {[%clk 0:02:52]} 8. O-O {[%clk 0:02:59]}  e5 {[%clk 0:02:53]} 9. dxe6 {[%clk 0:02:57]}  fxe6 {[%clk 0:02:53]} 10. Qxd6 {[%clk 0:02:57]}  Nb6 {[%clk 0:02:52]} 11. Qxc5 {[%clk 0:02:52]}  Bd7 {[%clk 0:02:53]} 12. Bg5 {[%clk 0:02:35]}  Qc8 {[%clk 0:02:40]} 13. Qxc8 {[%clk 0:02:32]}  Raxc8 {[%clk 0:02:41]} 14. b3 {[%clk 0:02:25]}  Bc6 {[%clk 0:02:37]} 15. e5 {[%clk 0:02:13]}  Nfd7 {[%clk 0:02:36]} 16. Be7 {[%clk 0:02:05]}  Nxe5 {[%clk 0:02:36]} 17. Nxe5 {[%clk 0:02:01]}  Bxe5 {[%clk 0:02:35]} 18. Bxf8 {[%clk 0:01:58]}  Bxc3 {[%clk 0:02:36]} 19. Ba3 {[%clk 0:01:55]}  Bxa1 {[%clk 0:02:36]} 20. Rxa1 {[%clk 0:01:55]}  Nd7 {[%clk 0:02:33]} 21. Bg4 {[%clk 0:01:53]}  Re8 {[%clk 0:02:31]} 22. Re1 {[%clk 0:01:53]}  Kf7 {[%clk 0:02:31]} 23. f4 {[%clk 0:01:52]}  Nf6 {[%clk 0:02:30]} 24. Bh3 {[%clk 0:01:51]}  Ne4 {[%clk 0:02:30]} 25. g3 {[%clk 0:01:48]}  Nc3 {[%clk 0:02:31]} 26. Bb2 {[%clk 0:01:17]}  Nxa2 {[%clk 0:02:27]} 27. Ra1 {[%clk 0:01:16]}  Nb4 {[%clk 0:02:28]} 28. Rxa7 {[%clk 0:01:17]}  Rd8 {[%clk 0:02:28]} 29. Bc3 {[%clk 0:01:14]}  Rd1+ {[%clk 0:02:28]} 30. Kf2 {[%clk 0:01:13]}  Rh1 {[%clk 0:02:17]} 31. Bxe6+ {[%clk 0:01:04]}  Kxe6 {[%clk 0:02:16]} 32. Bxb4 {[%clk 0:01:05]}  Rxh2+ {[%clk 0:02:16]} 33. Ke3 {[%clk 0:01:04]}  Rg2 {[%clk 0:02:17]} 34. Be1 {[%clk 0:01:04]}  Rb2 {[%clk 0:02:15]} 35. b4 {[%clk 0:01:02]}  Kf5 {[%clk 0:02:12]} 36. b5 {[%clk 0:01:01]}  Bg2 {[%clk 0:02:10]} 37. Ra8 {[%clk 0:00:55]}  Kg4 {[%clk 0:02:09]} 38. Rh8 {[%clk 0:00:54]}  Bf3 {[%clk 0:02:04]} 39. Bd2 {[%clk 0:00:50]}  Rb3+ {[%clk 0:02:00]} 40. Kd4 {[%clk 0:00:50]}  Be2 {[%clk 0:01:57]} 41. Bc3 {[%clk 0:00:48]}  Kxg3 {[%clk 0:01:56]} 42. Rxh7 {[%clk 0:00:48]}  Kxf4 {[%clk 0:01:56]} 43. Rxb7 {[%clk 0:00:48]}  g5 {[%clk 0:01:53]} 44. Rf7+ {[%clk 0:00:48]}  Kg3 {[%clk 0:01:53]} 45. Ba5 {[%clk 0:00:43]}  g4 {[%clk 0:01:52]} 46. Bc7+ {[%clk 0:00:43]}  Kg2 {[%clk 0:01:53]} 47. Rf4 {[%clk 0:00:38]}  g3 {[%clk 0:01:44]} 48. b6 {[%clk 0:00:38]}  Kh3 {[%clk 0:01:37]} 49. Rf6 {[%clk 0:00:35]}  g2 {[%clk 0:01:38]} 50. Rh6+ {[%clk 0:00:35]}  Kg4 {[%clk 0:01:34]} 51. c5 {[%clk 0:00:30]}  Kg5 {[%clk 0:01:23]} 52. Bh2 {[%clk 0:00:12]}  Kxh6 {[%clk 0:01:22]} 53. Ke5 {[%clk 0:00:10]}  Bf3 {[%clk 0:01:20]} 54. Kd6 {[%clk 0:00:10]}  Kg5 {[%clk 0:01:06]} 55. Kc7 {[%clk 0:00:10]}  Kg4 {[%clk 0:01:04]} 56. c6 {[%clk 0:00:11]}  Rc3 {[%clk 0:01:02]} 57. b7 {[%clk 0:00:11]}  Rxc6+ {[%clk 0:01:03]} 58. Kd7 {[%clk 0:00:07]}  Rb6 {[%clk 0:00:56]} 59. b8=Q {[%clk 0:00:05]}  Rxb8 {[%clk 0:00:56]} 60. Bxb8 {[%clk 0:00:06]}  g1=Q {[%clk 0:00:57]} 61. Bd6 {[%clk 0:00:06]}  Qd4 {[%clk 0:00:57]} 62. Ke7 {[%clk 0:00:06]}  Kf5 {[%clk 0:00:57]} 63. Kd7 {[%clk 0:00:06]}  Bd5 {[%clk 0:00:57]} 64. Kc7 {[%clk 0:00:07]}  Qg7+ {[%clk 0:00:57]} 65. Kb6 {[%clk 0:00:07]}  Qb7+ {[%clk 0:00:57]} 66. Ka5 {[%clk 0:00:06]}  Bc4 {[%clk 0:00:56]} 67. Bc7 {[%clk 0:00:04]}  Qb5# {[%clk 0:00:56]} 0-1


[Site "https://www.chess.com"]

[Event "Titled Tuesday Blitz May 10 Late 2022"]
[White "Novikova, Galina"]
[Black "Aksu, Vedat Ali"]
[WhiteFideId "4157095"]
[BlackFideId "6304320"]
[WhiteElo "1863"]
[BlackElo "2215"]
[Result "0-1"]
[Round "11"]
[TimeControl "180+1"]
[Date "2022.05.11"]
[WhiteClock "0:00:03"]
[BlackClock "0:00:34"]

1. e4 {[%clk 0:03:00]}  c5 {[%clk 0:02:57]} 2. Nf3 {[%clk 0:03:00]}  e6 {[%clk 0:02:53]} 3. b4 {[%clk 0:03:00]}  b6 {[%clk 0:02:52]} 4. bxc5 {[%clk 0:02:57]}  bxc5 {[%clk 0:02:52]} 5. c3 {[%clk 0:02:57]}  Ba6 {[%clk 0:02:51]} 6. d3 {[%clk 0:02:54]}  Qc7 {[%clk 0:02:49]} 7. Be2 {[%clk 0:02:54]}  Nf6 {[%clk 0:02:49]} 8. O-O {[%clk 0:02:55]}  Be7 {[%clk 0:02:49]} 9. Bg5 {[%clk 0:02:41]}  c4 {[%clk 0:02:49]} 10. d4 {[%clk 0:02:35]}  Nxe4 {[%clk 0:02:48]} 11. Bxe7 {[%clk 0:02:36]}  Kxe7 {[%clk 0:02:48]} 12. Ne5 {[%clk 0:02:23]}  f6 {[%clk 0:02:38]} 13. Bf3 {[%clk 0:02:02]}  Bb7 {[%clk 0:02:30]} 14. Re1 {[%clk 0:02:01]}  Ng5 {[%clk 0:01:59]} 15. Bxb7 {[%clk 0:01:57]}  Qxb7 {[%clk 0:01:58]} 16. Nxc4 {[%clk 0:01:58]}  h5 {[%clk 0:01:53]} 17. Nbd2 {[%clk 0:01:55]}  Nc6 {[%clk 0:01:51]} 18. d5 {[%clk 0:01:43]}  Nd8 {[%clk 0:01:45]} 19. h4 {[%clk 0:01:28]}  Ngf7 {[%clk 0:01:38]} 20. dxe6 {[%clk 0:01:28]}  dxe6 {[%clk 0:01:37]} 21. Ne4 {[%clk 0:01:21]}  Qc7 {[%clk 0:01:32]} 22. Qe2 {[%clk 0:01:15]}  Rc8 {[%clk 0:01:30]} 23. Ne3 {[%clk 0:01:12]}  Ne5 {[%clk 0:01:22]} 24. Rad1 {[%clk 0:00:52]}  Kf7 {[%clk 0:01:16]} 25. c4 {[%clk 0:00:45]}  Nb7 {[%clk 0:01:11]} 26. Rc1 {[%clk 0:00:37]}  Nc5 {[%clk 0:01:07]} 27. Nxc5 {[%clk 0:00:30]}  Qxc5 {[%clk 0:01:07]} 28. Red1 {[%clk 0:00:31]}  Rc7 {[%clk 0:01:07]} 29. Rc2 {[%clk 0:00:23]}  g6 {[%clk 0:01:06]} 30. Rcd2 {[%clk 0:00:22]}  Re8 {[%clk 0:01:04]} 31. Rd4 {[%clk 0:00:10]}  Ree7 {[%clk 0:01:03]} 32. Qd2 {[%clk 0:00:11]}  Rcd7 {[%clk 0:00:49]} 33. Rxd7 {[%clk 0:00:09]}  Rxd7 {[%clk 0:00:50]} 34. Qe1 {[%clk 0:00:09]}  Rd4 {[%clk 0:00:44]} 35. Rc1 {[%clk 0:00:07]}  Rxh4 {[%clk 0:00:43]} 36. Qd2 {[%clk 0:00:06]}  Qc7 {[%clk 0:00:42]} 37. Qb2 {[%clk 0:00:06]}  Ng4 {[%clk 0:00:39]} 38. Nxg4 {[%clk 0:00:03]}  hxg4 {[%clk 0:00:36]} 39. g3 {[%clk 0:00:03]}  Rh5 {[%clk 0:00:35]} 40. Qb4 {[%clk 0:00:02]}  Qc6 {[%clk 0:00:35]} 41. c5 {[%clk 0:00:03]}  Rh1# {[%clk 0:00:34]} 0-1


[Site "https://www.chess.com"]

[Event "Titled Tuesday Blitz May 10 Late 2022"]
[White "Prohorov, Olexandr"]
[Black "Wieczorek, Oskar"]
[WhiteFideId "14105578"]
[BlackFideId "1133950"]
[WhiteElo "2495"]
[BlackElo "2609"]
[Result "0-1"]
[Round "11"]
[TimeControl "180+1"]
[Date "2022.05.11"]
[WhiteClock "0:00:04"]
[BlackClock "0:00:03"]

1. e4 {[%clk 0:02:56]}  c6 {[%clk 0:02:58]} 2. d4 {[%clk 0:02:56]}  d5 {[%clk 0:02:59]} 3. e5 {[%clk 0:02:57]}  Bf5 {[%clk 0:02:56]} 4. Nf3 {[%clk 0:02:56]}  e6 {[%clk 0:02:56]} 5. Be2 {[%clk 0:02:56]}  Nd7 {[%clk 0:02:56]} 6. O-O {[%clk 0:02:56]}  h6 {[%clk 0:02:56]} 7. Be3 {[%clk 0:02:51]}  Ne7 {[%clk 0:02:55]} 8. Ne1 {[%clk 0:02:44]}  c5 {[%clk 0:02:53]} 9. c4 {[%clk 0:02:24]}  dxc4 {[%clk 0:02:43]} 10. Nc3 {[%clk 0:02:24]}  cxd4 {[%clk 0:02:39]} 11. Qxd4 {[%clk 0:02:21]}  Nc6 {[%clk 0:02:37]} 12. Qxc4 {[%clk 0:02:14]}  Ndxe5 {[%clk 0:02:27]} 13. Qb3 {[%clk 0:02:11]}  Be7 {[%clk 0:02:08]} 14. Nf3 {[%clk 0:02:10]}  O-O {[%clk 0:01:56]} 15. Nxe5 {[%clk 0:02:07]}  Nxe5 {[%clk 0:01:56]} 16. Qxb7 {[%clk 0:02:08]}  Bf6 {[%clk 0:01:47]} 17. Rfd1 {[%clk 0:02:04]}  Qb8 {[%clk 0:01:47]} 18. Qa6 {[%clk 0:01:57]}  Qxb2 {[%clk 0:01:44]} 19. Na4 {[%clk 0:01:47]}  Qc2 {[%clk 0:01:13]} 20. Rdc1 {[%clk 0:01:40]}  Qe4 {[%clk 0:01:06]} 21. Nc5 {[%clk 0:01:35]}  Qb4 {[%clk 0:01:01]} 22. a3 {[%clk 0:01:27]}  Qb6 {[%clk 0:01:01]} 23. Ne4 {[%clk 0:01:11]}  Qxa6 {[%clk 0:00:55]} 24. Nxf6+ {[%clk 0:01:10]}  gxf6 {[%clk 0:00:56]} 25. Bxa6 {[%clk 0:01:10]}  Bd3 {[%clk 0:00:52]} 26. Bxd3 {[%clk 0:00:58]}  Nxd3 {[%clk 0:00:51]} 27. Rc3 {[%clk 0:00:59]}  Rfd8 {[%clk 0:00:51]} 28. Bxh6 {[%clk 0:00:55]}  Rac8 {[%clk 0:00:46]} 29. Rxc8 {[%clk 0:00:53]}  Rxc8 {[%clk 0:00:47]} 30. Kf1 {[%clk 0:00:53]}  Rc2 {[%clk 0:00:42]} 31. Be3 {[%clk 0:00:50]}  a6 {[%clk 0:00:43]} 32. Rd1 {[%clk 0:00:46]}  Rc3 {[%clk 0:00:30]} 33. Ke2 {[%clk 0:00:42]}  Nb2 {[%clk 0:00:22]} 34. Rd2 {[%clk 0:00:37]}  Nc4 {[%clk 0:00:20]} 35. Rd8+ {[%clk 0:00:37]}  Kg7 {[%clk 0:00:21]} 36. Rc8 {[%clk 0:00:30]}  e5 {[%clk 0:00:14]} 37. a4 {[%clk 0:00:29]}  f5 {[%clk 0:00:13]} 38. g3 {[%clk 0:00:24]}  Kf6 {[%clk 0:00:12]} 39. Rc6+ {[%clk 0:00:20]}  Ke7 {[%clk 0:00:13]} 40. Rxa6 {[%clk 0:00:19]}  e4 {[%clk 0:00:05]} 41. Bc5+ {[%clk 0:00:16]}  Kd7 {[%clk 0:00:04]} 42. Ra7+ {[%clk 0:00:14]}  Kc6 {[%clk 0:00:05]} 43. Bd4 {[%clk 0:00:14]}  Rc2+ {[%clk 0:00:04]} 44. Ke1 {[%clk 0:00:13]}  Kd5 {[%clk 0:00:04]} 45. Rd7+ {[%clk 0:00:11]}  Ke6 {[%clk 0:00:05]} 46. Rd8 {[%clk 0:00:11]}  Ra2 {[%clk 0:00:04]} 47. Ra8 {[%clk 0:00:08]}  Kd5 {[%clk 0:00:04]} 48. Bc3 {[%clk 0:00:05]}  e3 {[%clk 0:00:03]} 49. fxe3 {[%clk 0:00:05]}  Nxe3 {[%clk 0:00:03]} 50. a5 {[%clk 0:00:05]}  Ke4 {[%clk 0:00:03]} 51. Re8+ {[%clk 0:00:04]}  Kd3 {[%clk 0:00:03]} 0-1


[Site "https://www.chess.com"]